bitfinex-derivatives/quotes_ETHF0:USTF0_20250417
["timestamp","ask_amount","ask_price","bid_price","bid_amount"]
[1744907467324,10.8366,1604.1,1603.4,1.31482058]
[1744907467325,1.24755,1603.5,1603.4,1.31482058]
[1744907467527,1.24755,1603.5,1603.4,4.66200099]
[1744907467726,1.24755,1603.5,1603.4,3.86423859]
[1744907468027,1.24755,1603.5,1603.4,4.66208416]
[1744907468330,1.24755,1603.5,1603.4,5.90965416]
[1744907468715,1.24755,1603.5,1603.4,4.66208416]
[1744907468921,1.24749,1603.5,1603.4,5.90959416]
[1744907469121,1.25681425,1603.6,1603.5,1.24749]
[1744907469424,0.00935425,1603.6,1603.5,7.68927738]
[1744907469732,0.00935425,1603.6,1603.5,13.48676982]
[1744907470024,1.24724,1603.9,1603.8,1.24723]
[1744907470228,1.24724,1603.9,1603.8,3.72478738]
[1744907470931,3.84314,1603.9,1603.8,3.72455745]
[1744907471521,1.24724,1603.9,1603.8,3.72455745]
[1744907472533,1.24741,1603.6,1603.5,3.2078]
[1744907473231,3.86501,1603.8,1603.7,1.24734]
[1744907473424,1.24731,1603.8,1603.7,4.45514]
[1744907473927,1.24731,1603.8,1603.7,4.00079295]
[1744907474129,1.24731,1603.8,1603.7,7.97173295]
[1744907474333,1.24721,1603.9,1603.8,1.24717]
[1744907474630,1.24721,1603.9,1603.8,2.03998022]
[1744907475130,1.24721,1603.9,1603.8,1.24726]
[1744907475331,1.24713,1604.0,1603.9,1.24713]
[1744907475529,1.24713,1604.0,1603.9,7.24123]
[1744907475730,1.24713,1604.0,1603.9,7.24128]
[1744907475929,1.24713,1604.0,1603.9,5.9941]
[1744907476132,1.24746,1603.6,1603.5,3.2078]
[1744907476630,1.24746,1603.6,1603.5,4.45529]
[1744907477024,1.24746,1603.6,1603.5,3.2078]
[1744907477532,1.24749,1603.5,1603.4,2.7863]
[1744907477829,1.24718,1603.9,1603.8,1.24723]
[1744907478030,1.2471,1604.1,1603.9,1.24713]
[1744907478233,1.24696,1604.2,1604.1,1.24701]
[1744907478534,1.24696,1604.2,1604.1,2.832]
[1744907479137,1.24702,1604.1,1604.0,3.2078]
[1744907479432,3.11769,1604.1,1603.6,8.08099229]
[1744907479731,1.24728,1603.8,1603.7,2.832]
[1744907481526,1.24726,1603.8,1603.7,2.832]
[1744907482434,1.24725,1603.9,1603.7,2.832]
[1744907482637,4.05636,1603.8,1603.7,2.832]
[1744907483838,4.05636,1603.8,1603.6,3.2078]
[1744907484230,4.05636,1603.8,1603.7,2.5703]
[1744907484635,6.23457,1604.3,1603.7,2.5703]
[1744907484636,14.02110638,1604.5,1603.9,3.11796]
[1744907484838,1.2468,1604.4,1604.2,1.24689]
[1744907485135,1.24679,1604.4,1604.3,6.27777278]
[1744907485535,3.85889,1604.4,1604.3,6.2774373]
[1744907486040,3.85889,1604.4,1604.3,3.2078]
[1744907486534,1.24679,1604.4,1604.3,3.7070799]
[1744907486734,3.95999,1604.4,1604.3,3.7070799]
[1744907486933,3.95999,1604.4,1604.3,3.2078]
[1744907486934,1.24679,1604.4,1604.3,3.2078]
[1744907487129,1.24679,1604.4,1604.3,3.70711057]
[1744907487339,1.24679,1604.4,1604.3,7.5418142]
[1744907487540,1.24679,1604.4,1604.3,6.2949442]
[1744907488436,3.95999,1604.4,1604.3,3.08678514]
[1744907488738,1.24679,1604.4,1604.3,6.29458514]
[1744907488933,1.24695,1604.2,1604.1,3.21715425]
[1744907489131,1.24695,1604.2,1604.1,3.71601994]
[1744907489426,1.24695,1604.2,1604.1,3.71603136]
[1744907489834,1.24695,1604.2,1604.1,6.54203136]
[1744907490633,3.96013,1604.3,1604.1,6.54203136]
[1744907490842,1.24686,1604.4,1604.2,3.32487711]
[1744907491044,1.24686,1604.4,1604.3,3.70626315]
[1744907491543,3.98415,1604.5,1604.4,1.24679]
[1744907491737,10.22167,1604.7,1604.6,1.24664]
[1744907491938,1.24664,1604.6,1604.5,4.45445]
[1744907492143,10.22169,1604.7,1604.6,1.24664]
[1744907492337,8.97508,1604.7,1604.5,6.0338]
[1744907492537,10.22165,1604.7,1604.6,1.24664]
[1744907492737,8.97508,1604.7,1604.6,1.74452164]
[1744907493535,8.97508,1604.7,1604.6,6.24664]
[1744907493734,1.8977885,1604.7,1604.6,6.24664]
[1744907494144,1.4836885,1604.7,1604.6,6.24664]
[1744907494441,1.0482885,1604.7,1604.6,6.24664]
[1744907494743,8.25310638,1605.1,1605.0,1.24633]
[1744907494943,8.25310638,1605.1,1605.0,4.95109935]
[1744907495144,11.36831638,1605.4,1605.1,1.24624]
[1744907495343,1.24622,1605.2,1605.1,1.24624]
[1744907495647,1.24622,1605.2,1605.1,4.95972675]
[1744907496250,1.24617,1605.2,1605.1,4.95969675]
[1744907496457,4.05266,1605.3,1605.2,1.24617]
[1744907496651,4.05266,1605.3,1605.1,3.21715425]
[1744907496954,4.05266,1605.3,1605.1,4.46333425]
[1744907496955,1.24617,1605.2,1605.1,4.46333425]
[1744907497156,4.05266,1605.3,1605.1,4.46333425]
[1744907497550,4.05266,1605.3,1605.2,1.24617]
[1744907497858,1.24609,1605.3,1605.2,1.24615]
[1744907498351,9.49917638,1605.4,1605.1,3.21715425]
[1744907498553,8.25310638,1605.4,1605.3,4.45389]
[1744907498755,7.62589,1605.5,1605.4,1.24601]
[1744907498954,10.31638298,1605.6,1605.5,1.24594]
[1744907499154,12.43286629,1605.9,1605.5,1.24594]
[1744907499155,8.70191508,1605.9,1605.8,1.2457]
[1744907499355,2.6217,1606.2,1606.0,1.24555]
[1744907499660,2.6217,1606.2,1606.1,1.24547]
[1744907500053,3.86714,1606.2,1606.0,4.45329]
[1744907500254,1.24547,1606.1,1606.0,3.2078]
[1744907500459,3.86717,1606.2,1606.0,4.45333]
[1744907500659,1.24547,1606.1,1606.0,4.45333]
[1744907500958,3.86715,1606.2,1606.0,4.45333]
[1744907501160,1.24547,1606.1,1606.0,3.2078]
[1744907501359,1.24547,1606.1,1606.0,4.45328]
[1744907501561,8.2746464,1606.3,1606.0,3.70293941]
[1744907501858,8.2746464,1606.3,1606.2,4.45319]
[1744907502260,8.2746464,1606.3,1606.2,9.94810142]
[1744907502460,8.2746464,1606.3,1606.2,15.55610142]
[1744907502960,5.4265,1606.9,1606.4,1.24521]
[1744907502961,8.53865,1606.9,1606.4,1.24521]
[1744907503161,1.24512,1606.6,1606.5,3.2078]
[1744907503957,1.24531,1606.4,1606.1,3.2078]
[1744907504153,1.24539,1606.2,1606.1,3.2078]
[1744907504656,3.84209,1606.2,1606.1,3.2078]
[1744907505057,1.24539,1606.2,1606.1,4.45327]
[1744907505761,6.63165,1606.3,1606.2,1.24539]
[1744907505963,9.44798,1606.4,1606.2,1.24533]
[1744907506263,1.24523,1606.5,1606.4,1.24524]
[1744907506658,1.24522,1606.5,1606.3,4.45308]
[1744907506865,1.24522,1606.5,1606.3,4.45306]
[1744907507062,1.24522,1606.5,1606.4,4.07824]
[1744907507362,1.24522,1606.5,1606.4,2.833]
[1744907507555,6.5349,1606.6,1606.4,4.07822]
[1744907507755,6.53488,1606.6,1606.5,3.2078]
[1744907507956,6.53488,1606.6,1606.5,5.9221]
[1744907508661,3.2078,1606.9,1606.5,5.9221]
[1744907508856,3.2078,1607.0,1606.7,3.2078]
[1744907509162,1.24493,1606.8,1606.7,3.2078]
[1744907509460,1.24493,1606.8,1606.7,3.21715425]
[1744907509666,4.07353,1606.8,1606.7,3.21715425]
[1744907511265,9.07353,1606.8,1606.7,3.21715425]
[1744907511964,1.24508,1606.6,1606.5,3.2078]
[1744907512258,5.1806,1606.9,1606.5,6.32062]
[1744907512459,1.24471,1607.1,1606.9,1.24484]
[1744907512665,2.7263,1607.0,1606.9,1.24484]
[1744907513164,3.97109,1607.0,1606.8,4.06083425]
[1744907513462,3.97107,1607.0,1606.8,4.06083425]
[1744907513659,3.97107,1607.0,1606.9,2.8368]
[1744907514263,2.7263,1607.0,1606.9,7.28945]
[1744907514459,0.00935425,1607.1,1606.9,6.0446]
[1744907514656,1.25408425,1607.1,1606.9,6.0446]
[1744907514856,1.24477,1607.0,1606.9,7.2894]
[1744907515058,2.70745425,1607.1,1606.9,6.0446]
[1744907515266,3.95220425,1607.1,1606.9,7.28938]
[1744907515457,3.95220425,1607.1,1607.0,1.24477]
[1744907515767,4.25e-06,1607.1,1607.0,4.08157]
[1744907515966,1.24441,1607.5,1607.3,1.24447]
[1744907516165,1.24441,1607.5,1607.4,7.28906]
[1744907516464,3.2078,1608.0,1607.6,1.24431]
[1744907516667,2.7709,1608.0,1607.7,2.6573]
[1744907516867,1.24418,1607.8,1607.7,2.6573]
[1744907517070,1.24418,1607.8,1607.7,3.91088425]
[1744907517365,1.24413,1607.9,1607.7,3.91088425]
[1744907517566,1.24415,1607.8,1607.7,3.91088425]
[1744907517757,1.24413,1607.9,1607.7,3.91088425]
[1744907518069,1.24413,1607.9,1607.8,3.2078]
[1744907518363,5.4703,1608.1,1607.9,1.24408]
[1744907518569,1.24405,1608.0,1607.8,4.45191]
[1744907518772,1.24405,1608.0,1607.9,2.6573]
[1744907519368,1.24405,1608.0,1607.9,3.90138]
[1744907519672,1.24398,1608.1,1607.9,2.6573]
[1744907519871,1.24392,1608.1,1608.0,4.4518]
[1744907520071,1.24387,1608.2,1608.1,1.24388]
[1744907520274,1.24382,1608.3,1608.2,1.24385]
[1744907520467,5.347,1608.4,1608.2,3.2078]
[1744907520468,6.5907,1608.4,1608.2,3.2078]
[1744907520672,1.2437,1608.4,1608.3,2.6393]
[1744907521067,5.347,1608.7,1608.3,7.6393]
[1744907521267,2.578,1608.7,1608.4,3.2078]
[1744907521473,1.24369,1608.4,1608.3,2.6393]
[1744907521865,1.24367,1608.5,1608.3,3.88307]
[1744907522067,1.24369,1608.4,1608.3,2.6393]
[1744907522977,1.24369,1608.4,1608.3,3.88307]
[1744907523166,1.24369,1608.4,1608.3,2.6393]
[1744907523667,1.24415,1607.9,1607.8,4.45192]
[1744907523871,1.24401,1608.0,1607.9,1.24402]
[1744907524171,1.24401,1608.0,1607.9,2.5822]
[1744907524477,1.24408,1607.9,1607.8,3.2078]
[1744907525169,6.22135,1607.7,1607.3,3.2078]
[1744907525475,1.24477,1607.1,1607.0,2.5822]
[1744907525865,1.24493,1606.8,1606.7,40.8]
[1744907526169,1.24508,1606.6,1606.4,4.453]
[1744907526362,1.24499,1606.8,1606.6,1.25443425]
[1744907526569,1.24499,1606.8,1606.6,4.46223425]
[1744907526869,1.24501,1606.7,1606.6,3.21715425]
[1744907527061,9.64491,1606.7,1606.6,3.21715425]
[1744907527262,14.64491,1606.7,1606.6,3.21715425]
[1744907527462,9.64491,1606.7,1606.6,3.21715425]
[1744907527871,9.64491,1606.7,1606.6,6.00505425]
[1744907528579,9.64491,1606.7,1606.6,3.21715425]
[1744907529473,5.618,1606.7,1606.6,3.21715425]
[1744907529777,6.86301,1606.7,1606.6,3.21715425]
[1744907529971,5.618,1606.7,1606.6,4.46223425]
[1744907530273,1.24501,1606.7,1606.6,3.21715425]
[1744907530672,1.24501,1606.7,1606.6,5.85635425]
[1744907532278,2.7404,1606.8,1606.6,7.10143425]
[1744907532475,3.98539,1606.8,1606.7,2.6353]
[1744907532883,1.24501,1606.7,1606.6,3.21715425]
[1744907533179,3.87491,1606.7,1606.6,3.21715425]
[1744907534874,1.24496,1606.8,1606.6,3.21715425]
[1744907535076,1.24501,1606.7,1606.6,3.21715425]
[1744907536084,1.24501,1606.7,1606.6,4.46223425]
[1744907536282,1.24501,1606.7,1606.6,3.21715425]
[1744907538784,1.24498,1606.8,1606.6,4.46220425]
[1744907539081,1.24501,1606.7,1606.6,3.21715425]
[1744907539279,3.95808,1606.8,1606.6,3.21715425]
[1744907539483,3.95808,1606.8,1606.7,2.6285]
[1744907540074,1.24501,1606.7,1606.6,3.21715425]
[1744907540274,9.57811,1606.7,1606.6,0.00935425]
[1744907540476,14.57811,1606.7,1606.6,0.00935425]
[1744907540881,1.24501,1606.7,1606.6,4.46223425]
[1744907541982,2.6712,1606.8,1606.6,3.21715425]
[1744907542189,0.00935425,1606.9,1606.8,1.24493]
[1744907542486,1.25420425,1606.9,1606.8,3.2078]
[1744907543484,1.25420425,1606.9,1606.8,4.45273]
[1744907543684,0.00935425,1606.9,1606.8,4.45273]
[1744907544087,0.00935425,1606.9,1606.8,9.94667489]
[1744907544685,6.31803,1607.9,1607.5,1.24436]
[1744907544887,2.629,1607.8,1607.5,3.2078]
[1744907545188,1.2443,1607.7,1607.6,2.7123]
[1744907545980,1.24431,1607.6,1607.5,3.21715425]
[1744907546188,3.87331,1607.6,1607.5,3.21715425]
[1744907546887,3.87331,1607.6,1607.5,0.00935425]
[1744907547388,9.49331,1607.6,1607.5,0.00935425]
[1744907547988,1.24454,1607.3,1607.2,3.2078]
[1744907548288,1.24476,1607.1,1606.9,4.45265]
[1744907548491,1.24477,1607.0,1606.9,3.2078]
[1744907548689,3.11215,1606.9,1606.5,1.24513]
[1744907548885,3.87308,1606.8,1606.6,3.2078]
[1744907549079,1.24501,1606.7,1606.6,3.2078]
[1744907549282,1.24508,1606.6,1606.5,2.59675425]
[1744907549482,1.24508,1606.6,1606.5,0.00935425]
[1744907550091,3.87318,1606.6,1606.5,0.00935425]
[1744907550287,8.87318,1606.6,1606.5,0.00935425]
[1744907551996,8.87318,1606.6,1606.3,7.99596221]
[1744907551997,1.24524,1606.4,1606.3,7.99596221]
[1744907552187,6.67424,1606.4,1606.3,7.99596221]
[1744907552385,2.6638,1606.5,1606.3,11.20376221]
[1744907552590,7.9818,1606.7,1606.3,13.80926221]
[1744907552790,10.6644,1606.7,1606.4,2.6055]
[1744907553294,1.24513,1606.6,1606.4,2.6055]
[1744907553497,3.94723,1606.6,1606.4,3.85072]
[1744907553688,3.94719,1606.6,1606.4,3.85072]
[1744907553893,1.24516,1606.5,1606.4,2.6055]
[1744907554096,1.24524,1606.4,1606.3,3.21715425]
[1744907554294,3.21715425,1606.9,1606.3,3.21715425]
[1744907554595,1.24508,1606.6,1606.5,3.2078]
[1744907555291,1.24508,1606.6,1606.5,7.18976]
[1744907555493,1.24507,1606.7,1606.5,7.18976]
[1744907555690,1.24508,1606.6,1606.5,5.9446]
[1744907555882,2.7021,1606.8,1606.5,5.9446]
[1744907556083,1.24507,1606.7,1606.5,7.18969]
[1744907556390,1.24508,1606.6,1606.5,5.9446]
[1744907556886,1.24506,1606.7,1606.5,7.1897]
[1744907557091,1.24508,1606.6,1606.5,5.9446]
[1744907557795,1.24508,1606.6,1606.5,3.2078]
[1744907559099,1.24508,1606.6,1606.5,4.45296]
[1744907559799,1.24508,1606.6,1606.5,3.2078]
[1744907560296,1.24507,1606.7,1606.6,1.24508]
[1744907560499,1.24507,1606.7,1606.6,2.7163]
[1744907561794,5.94175425,1606.9,1606.6,2.7163]
[1744907561995,0.00935425,1606.9,1606.8,1.24493]
[1744907562295,8.54141,1607.3,1607.1,1.24463]
[1744907562296,6.67462,1607.3,1607.1,1.24463]
[1744907562499,6.67462,1607.3,1607.2,2.7641]
[1744907562694,5.43,1607.3,1607.2,4.00872]
[1744907562895,5.43,1607.3,1607.2,7.21652]
[1744907563494,6.67454,1607.3,1607.2,5.9719]
[1744907563693,1.24462,1607.2,1607.1,1.24469]
[1744907563897,5.43,1607.3,1607.2,1.24462]
[1744907564202,0.00935425,1607.4,1607.3,1.24454]
[1744907564400,0.00935425,1607.4,1607.3,4.45234]
[1744907565295,1.25381425,1607.4,1607.3,4.45234]
[1744907565490,1.25381425,1607.4,1607.3,3.2078]
[1744907566501,1.25381425,1607.4,1607.3,4.45234]
[1744907567301,1.25381425,1607.4,1607.3,3.2078]
[1744907567896,1.24454,1607.3,1607.2,2.77345425]
[1744907568097,1.24485,1606.9,1606.8,3.2078]
[1744907568608,1.24508,1606.7,1606.5,1.24509]
[1744907568796,1.24508,1606.7,1606.5,3.92749]
[1744907568998,1.24508,1606.6,1606.5,3.92749]
[1744907569197,1.24508,1606.6,1606.5,2.6824]
[1744907569400,1.24507,1606.7,1606.5,2.6824]
[1744907569596,4.11307,1606.7,1606.6,4.45288]
[1744907570507,8.54079,1607.1,1606.6,3.2078]
[1744907570694,1.24488,1606.9,1606.8,4.45273]
[1744907570897,1.24488,1606.9,1606.8,3.2078]
[1744907571093,1.24488,1606.9,1606.8,4.45273]
[1744907571297,1.24488,1606.9,1606.8,3.2078]
[1744907571501,1.24488,1606.9,1606.8,4.45273]
[1744907572100,5.429,1607.1,1606.9,1.24485]
[1744907572400,9.50985,1607.1,1607.0,2.7162]
[1744907572604,9.50985,1607.1,1606.6,4.45287]
[1744907572605,3.11221,1606.9,1606.6,4.45287]
[1744907572804,2.8361,1606.8,1606.6,5.924]
[1744907573006,4.08108,1606.8,1606.7,2.7162]
[1744907573505,1.24508,1606.6,1606.5,1.24515]
[1744907573703,1.24508,1606.6,1606.5,3.96135]
[1744907574303,8.2651,1606.8,1606.6,1.24507]
[1744907574515,9.5101,1606.8,1606.7,5.9062]
[1744907574806,9.5101,1606.8,1606.7,2.6984]
[1744907574995,6.674,1606.8,1606.7,5.9062]
[1744907575600,1.245,1606.8,1606.7,5.9062]
[1744907577306,1.245,1606.8,1606.7,3.2078]
[1744907577499,1.245,1606.8,1606.4,0.00935425]
[1744907577500,1.24516,1606.5,1606.4,0.00935425]
[1744907577695,9.88196,1606.5,1606.4,0.00935425]
[1744907577901,1.24547,1606.1,1606.0,12.18287]
[1744907578604,1.24547,1606.1,1606.0,8.97507]
[1744907579107,3.86447,1606.1,1606.0,8.97507]
[1744907579408,3.86447,1606.1,1606.0,12.18287]
[1744907579800,1.24547,1606.1,1606.0,13.42842]
[1744907580002,6.68480425,1606.2,1606.0,13.42842]
[1744907580303,0.00935425,1606.2,1606.1,4.02817]
[1744907580600,1.24503,1606.7,1606.5,1.2451]
[1744907580794,1.24503,1606.7,1606.6,2.8829]
[1744907581605,1.25434425,1606.8,1606.6,2.8829]
[1744907581804,1.25434425,1606.8,1606.7,4.45281]
[1744907582008,0.00935425,1606.8,1606.7,4.45281]
[1744907582304,6.0822,1607.3,1606.7,8.2078]
[1744907582604,1.24439,1607.5,1607.4,1.24441]
[1744907582811,1.24439,1607.5,1607.4,3.2078]
[1744907583006,1.2447,1607.1,1607.0,40.8]
[1744907583206,1.2447,1607.1,1607.0,2.8829]
[1744907584204,0.00935425,1607.2,1607.1,1.2447]
[1744907584500,1.25397425,1607.2,1607.1,3.2078]
[1744907584903,1.25397425,1607.2,1607.0,2.8829]
[1744907584904,1.2447,1607.1,1607.0,2.8829]
[1744907585107,4.0723,1607.1,1607.0,6.0907]
[1744907585503,0.00935425,1607.2,1607.1,1.2447]
[1744907585708,0.00935425,1607.2,1607.1,6.2447]
[1744907585912,0.00935425,1607.2,1607.1,6.74045895]
[1744907587116,0.00935425,1607.2,1607.1,1.74045895]
[1744907587607,3.2078,1608.0,1607.7,1.24417]
[1744907587813,1.24416,1607.8,1607.6,4.45204]
[1744907588011,1.24412,1607.9,1607.8,1.24414]
[1744907588212,2.6837,1608.0,1607.9,1.24408]
[1744907588420,1.244,1608.0,1607.9,1.24408]
[1744907589112,1.24408,1607.9,1607.8,4.46125425]
[1744907589321,1.24406,1608.0,1607.9,1.24408]
[1744907589528,1.24408,1607.9,1607.8,4.46127425]
[1744907589831,1.24408,1607.9,1607.8,3.21715425]
[1744907590025,1.24423,1607.7,1607.6,3.2078]
[1744907590532,1.24405,1608.0,1607.9,1.24406]
[1744907591026,1.24408,1607.9,1607.8,4.45189]
[1744907591227,1.24408,1607.9,1607.8,4.46124425]
[1744907591531,1.24432,1607.6,1607.5,1.24435]
[1744907591925,1.24439,1607.5,1607.4,3.2078]
[1744907592123,1.24434,1607.6,1607.4,3.2078]
[1744907592325,3.96304,1607.6,1607.5,1.24436]
[1744907592629,3.96304,1607.6,1607.4,4.4522]
[1744907592630,1.24439,1607.5,1607.4,4.4522]
[1744907592833,3.87889,1607.5,1607.4,3.21715425]
[1744907593024,3.87889,1607.5,1607.4,4.46161425]
[1744907593224,2.6345,1607.5,1607.4,4.46161425]
[1744907593532,1.24432,1607.6,1607.4,3.21715425]
[1744907593733,1.24432,1607.6,1607.5,1.24433]
[1744907593934,3.87882,1607.6,1607.5,1.24433]
[1744907594231,2.6543,1607.7,1607.6,1.24431]
[1744907594232,3.89859,1607.7,1607.6,1.24431]
[1744907594532,3.89859,1607.7,1607.6,3.2078]
[1744907594934,1.24439,1607.5,1607.4,4.46160425]
[1744907595130,3.87883,1607.6,1607.5,1.24439]
[1744907595336,2.6543,1607.7,1607.4,3.21715425]
[1744907595630,9.4284,1607.9,1607.5,1.24431]
[1744907595631,1.24434,1607.6,1607.5,1.24431]
[1744907595832,1.24434,1607.6,1607.5,1.24439]
[1744907596634,1.2443,1607.7,1607.6,1.24427]
[1744907596827,1.24423,1607.8,1607.7,1.2442]
[1744907597127,0.00935425,1608.1,1607.6,3.2078]
[1744907597336,0.00935425,1608.1,1608.0,1.244]
[1744907597532,1.25333425,1608.1,1608.0,1.244]
[1744907597731,1.244,1608.0,1607.9,4.45181]
[1744907598335,4.03565425,1608.1,1608.0,1.244]
[1744907598633,1.25327425,1608.1,1608.0,1.244]
[1744907600234,0.00935425,1608.1,1608.0,1.244]
[1744907601331,0.00935425,1608.1,1607.9,4.45181]
[1744907601534,0.00935425,1608.1,1608.0,1.244]
[1744907604332,1.25327425,1608.1,1608.0,1.244]
[1744907605037,0.00935425,1608.1,1608.0,1.244]
[1744907605236,1.25327425,1608.1,1608.0,1.244]
[1744907605939,3.90247425,1608.1,1608.0,1.244]
[1744907606239,2.65855425,1608.1,1608.0,1.244]
[1744907606538,0.00935425,1608.1,1608.0,1.244]
[1744907607129,1.25327425,1608.1,1608.0,3.9864]
[1744907607331,3.90247425,1608.1,1608.0,3.9864]
[1744907607631,2.65855425,1608.1,1608.0,3.9864]
[1744907608331,0.00935425,1608.1,1608.0,3.9864]
[1744907608537,3.2078,1608.8,1608.7,1.24342]
[1744907608538,1.24343,1608.8,1608.7,1.24342]
[1744907609039,5.8197,1609.0,1608.6,3.2078]
[1744907609238,1.24344,1608.8,1608.7,1.24344]
[1744907609639,1.25265787,1608.9,1608.8,1.24335]
[1744907609939,0.00929787,1608.9,1608.8,4.45115]
[1744907610838,1.25259787,1608.9,1608.8,4.45115]
[1744907611036,1.25259787,1608.9,1608.8,3.2078]
[1744907611239,0.00929787,1608.9,1608.7,1.24346]
[1744907611440,1.25265787,1608.9,1608.8,1.24338]
[1744907611631,0.00929787,1608.9,1608.8,1.24338]
[1744907611829,1.25259787,1608.9,1608.8,4.45118]
[1744907612233,0.00929787,1608.9,1608.8,4.45118]
[1744907612433,1.25259787,1608.9,1608.8,3.2078]
[1744907612729,1.24342,1608.8,1608.7,1.24343]
[1744907613035,1.24346,1608.7,1608.6,3.21712401]
[1744907613229,1.24387,1608.2,1608.1,1.24389]
[1744907613641,1.24387,1608.2,1608.1,1.24392]
[1744907613941,1.24386,1608.2,1608.1,1.24388]
[1744907614329,5.70833,1608.3,1608.0,1.24394]
[1744907614528,10.7823,1608.7,1608.1,3.2078]
[1744907614837,5.9467,1608.7,1608.6,1.24354]
[1744907615230,7.19019,1608.7,1608.6,1.24354]
[1744907615832,1.24367,1608.5,1608.4,1.24366]
[1744907616035,1.24374,1608.4,1608.3,1.24373]
[1744907616235,3.89294,1608.4,1608.3,1.24373]
[1744907616637,1.24382,1608.3,1608.2,1.2438]
[1744907616831,1.24385,1608.2,1608.1,13.42673]
[1744907617233,1.24385,1608.2,1608.1,10.21893]
[1744907617440,12.07567,1608.4,1608.1,10.21893]
[1744907617441,1.24384,1608.3,1608.2,1.24381]
[1744907617635,3.88714,1608.3,1608.2,1.24381]
[1744907617831,6.0042,1608.6,1608.1,12.18287]
[1744907618132,1.24364,1608.5,1608.4,1.24362]
[1744907618338,1.24369,1608.4,1608.3,4.45149]
[1744907618540,1.24376,1608.4,1608.3,1.24373]
[1744907618735,1.24369,1608.4,1608.3,1.24373]
[1744907618927,5.75221,1608.6,1608.1,12.18287]
[1744907619132,3.10904,1608.5,1608.1,13.42674]
[1744907619335,1.24385,1608.2,1608.1,13.42674]
[1744907620240,2.6433,1608.4,1608.3,1.24377]
[1744907620442,2.6433,1608.4,1608.1,15.29252]
[1744907620443,11.1396,1608.7,1608.4,1.24369]
[1744907620643,1.24363,1608.5,1608.4,1.24369]
[1744907620838,3.10904,1608.5,1608.1,12.18287]
[1744907621040,1.24382,1608.3,1608.2,1.24378]
[1744907621537,3.91829,1608.4,1608.3,1.24377]
[1744907621842,2.6746,1608.4,1608.3,1.24377]
[1744907622037,1.24364,1608.5,1608.4,1.24369]
[1744907622242,3.2078,1608.6,1608.5,1.24361]
[1744907622636,0.00929787,1608.9,1608.8,1.24338]
[1744907622835,0.00929787,1608.9,1608.8,4.45118]
[1744907623136,0.00929787,1608.9,1608.8,45.25118]
[1744907623540,0.00929787,1608.9,1608.8,42.04338]
[1744907623735,0.00929787,1608.9,1608.8,45.25118]
[1744907623939,0.00929787,1608.9,1608.8,4.945977]
[1744907624340,0.00929787,1608.9,1608.8,45.745977]
[1744907624540,0.00929787,1608.9,1608.8,45.25118]
[1744907624843,0.00929787,1608.9,1608.8,45.74589243]
[1744907625141,0.00929787,1608.9,1608.8,45.25118]
[1744907625344,1.25259787,1608.9,1608.8,45.25118]
[1744907625645,0.00929787,1608.9,1608.8,45.25118]
[1744907625946,2.77119787,1608.9,1608.8,45.25118]
[1744907626248,4.01449787,1608.9,1608.8,4.45118]
[1744907626433,2.77119787,1608.9,1608.8,4.45118]
[1744907626638,0.00929787,1608.9,1608.8,45.25118]
[1744907626843,0.00929787,1608.9,1608.8,45.74623026]
[1744907627745,0.00929787,1608.9,1608.8,45.746397]
[1744907628137,0.00929787,1608.9,1608.8,45.25118]
[1744907628347,2.96049787,1608.9,1608.8,4.94644529]
[1744907628540,2.96049787,1608.9,1608.8,4.45118]
[1744907628749,0.00929787,1608.9,1608.8,4.45118]
[1744907629450,1.24338,1608.8,1608.7,42.04346]
[1744907629636,4.15068,1608.8,1608.7,42.04346]
[1744907629836,1.24346,1608.7,1608.6,3.2078]
[1744907630043,4.15076,1608.7,1608.6,3.2078]
[1744907630241,14.44076,1608.7,1608.6,3.2078]
[1744907630445,16.4051,1608.7,1608.3,47.11721]
[1744907630636,8.1973,1608.7,1608.6,1.24354]
[1744907631047,8.1973,1608.7,1608.5,4.45137]
[1744907631245,1.24354,1608.6,1608.5,4.45137]
[1744907631438,2.9073,1608.6,1608.5,4.45137]
[1744907631748,5.29,1608.7,1608.6,1.24354]
[1744907631948,6.53346,1608.7,1608.6,1.24354]
[1744907632447,6.53352,1608.7,1608.6,1.24354]
[1744907632645,1.24354,1608.6,1608.5,4.45136]
[1744907632843,4.08174,1608.6,1608.5,4.45136]
[1744907633943,2.8382,1608.6,1608.5,4.45136]
[1744907634142,2.8382,1608.8,1608.7,1.24346]
[1744907634348,4.08158,1608.8,1608.7,1.24346]
[1744907635448,1.24346,1608.7,1608.6,2.8379]
[1744907635647,1.24354,1608.6,1608.5,3.2078]
[1744907636255,4.04522,1608.7,1608.6,1.24354]
[1744907636448,2.8017,1608.7,1608.6,1.24354]
[1744907636746,4.04516,1608.7,1608.6,2.7267]
[1744907636944,1.24369,1608.4,1608.3,3.2078]
[1744907637147,1.24369,1608.4,1608.3,4.94811247]
[1744907637447,1.24367,1608.5,1608.4,1.24367]
[1744907637644,5.291,1608.7,1608.6,1.24354]
[1744907637848,9.33619,1608.7,1608.6,1.24354]
[1744907638046,1.24354,1608.6,1608.5,7.17805]
[1744907638240,3.92794,1608.6,1608.5,7.17805]
[1744907639249,3.92794,1608.6,1608.5,5.9345]
[1744907639447,1.24361,1608.5,1608.3,4.45152]
[1744907639648,3.92801,1608.5,1608.3,7.29582]
[1744907639845,1.25265787,1608.9,1608.5,3.10904]
[1744907640040,0.00929787,1608.9,1608.5,6.31684]
[1744907640241,0.00929787,1608.9,1608.8,1.24338]
[1744907640445,0.00929787,1608.9,1608.8,4.08768]
[1744907642141,0.00929787,1608.9,1608.8,4.58384046]
[1744907642646,7.87e-06,1608.9,1608.8,14.91384046]
[1744907642845,7.87e-06,1608.9,1608.8,15.69327467]